fUST/lending_fUST_20250308
["ID","MTS","AMOUNT","RATE_DAILY","PERIOD"]
[355650873,1741437041195,-833.51,0.00049315,120]
[355650874,1741437041205,-833.51,0.00049315,120]
[355650875,1741437041214,-833.51,0.00049315,120]
[355650876,1741437041223,-833.51,0.00049315,120]
[355650877,1741437041233,-833.69297275,0.00049315,120]
[355650878,1741437041243,-509.20289645,0.00049315,120]
[355650879,1741437041252,-512.96205649,0.00049315,120]
[355650880,1741437041263,-513.39043369,0.00049315,120]
[355650881,1741437041272,-505.97119795,0.00049315,120]
[355650882,1741437041282,-586.67551706,0.00049315,120]
[355650883,1741437041291,-507.00040383,0.00049315,120]
[355650884,1741437041301,-503.66914482,0.00049315,120]
[355650885,1741437041310,-307.19046025,0.00049315,120]
[355650886,1741437041319,-500.0,0.00049315,120]
[355650887,1741437041329,-526.9089251,0.00049315,120]
[355650888,1741437041338,-516.22538291,0.00049315,120]
[355650889,1741437041349,-506.81447175,0.00049315,120]
[355650890,1741437041358,-500.0,0.00049315,120]
[355650891,1741437041368,-500.0,0.00049315,120]
[355650892,1741437041377,-505.38054331,0.00049315,120]
[355650893,1741437041386,-500.0,0.00049315,120]
[355650894,1741437041396,-511.95814668,0.00049315,120]
[355650895,1741437041405,-500.0,0.00049315,120]
[355650896,1741437041414,-500.0,0.00049315,120]
[355650897,1741437041423,-513.2813966,0.00049315,120]
[355650898,1741437041433,-523.73678083,0.00049315,120]
[355650899,1741437041442,-542.81784306,0.00049315,120]
[355650900,1741437041451,-517.52283314,0.00049315,120]
[355650901,1741437041461,-500.0,0.00049315,120]
[355650902,1741437041471,-500.0,0.00049315,2]
[355650903,1741437041480,-360.60368396,0.00049315,120]
[355650904,1741437041489,-508.69331106,0.00049315,120]
[355650905,1741437041498,-1000.0,0.00049315,7]
[355650906,1741437041507,-515.82755753,0.00049315,120]
[355650907,1741437041517,-519.53629376,0.00049315,120]
[355650908,1741437041526,-500.0,0.00049315,120]
[355650909,1741437041537,-500.0,0.00049315,2]
[355650910,1741437041546,-500.0,0.00049315,120]
[355650911,1741437041555,-180.14888899,0.00049315,120]
[355650912,1741437041564,-500.0,0.00049315,120]
[355650913,1741437041574,-500.0,0.00049315,120]
[355650914,1741437041583,-314.50886071,0.00049315,120]
[355650915,1741437041593,-500.0,0.00049315,120]
[355650916,1741437041604,-500.0,0.00049315,120]
[355650917,1741437041613,-500.0,0.00049315,120]
[355650918,1741437041623,-840.48,0.00049315,120]
[355650919,1741437041632,-840.48,0.00049315,120]
[355650920,1741437041641,-840.48,0.00049315,120]
[355650921,1741437041651,-840.48,0.00049315,120]
[355650922,1741437041661,-840.48,0.00049315,120]
[355650923,1741437041671,-506.72108897,0.00049315,120]
[355650924,1741437041680,-840.48,0.00049315,120]
[355650925,1741437041690,-840.48,0.00049315,120]
[355650926,1741437041700,-840.48,0.00049315,120]
[355650927,1741437041709,-840.48,0.00049315,120]
[355650928,1741437041718,-840.48,0.00049315,120]
[355650929,1741437041728,-840.48,0.00049315,120]
[355650930,1741437041738,-840.48,0.00049315,120]
[355650931,1741437041747,-840.48,0.00049315,120]
[355650932,1741437041757,-840.48,0.00049315,120]
[355650933,1741437041766,-840.48,0.00049315,120]
[355650934,1741437041776,-840.48,0.00049315,120]
[355650935,1741437041785,-840.48,0.00049315,120]
[355650936,1741437041795,-840.48,0.00049315,120]
[355650937,1741437041806,-840.48,0.00049315,120]
[355650938,1741437041815,-840.48,0.00049315,120]
[355650939,1741437041824,-840.48,0.00049315,120]
[355650940,1741437041834,-840.48,0.00049315,120]
[355650941,1741437041843,-840.48,0.00049315,120]
[355650942,1741437041854,-840.6047707,0.00049315,120]
[355650943,1741437041863,-536.4954443,0.00049315,120]
[355650944,1741437041872,-521.6795734,0.00049315,120]
[355650945,1741437041882,-500.0,0.00049315,120]
[355650946,1741437041891,-500.0,0.00049315,120]
[355650947,1741437041901,-500.0,0.00049315,120]
[355650948,1741437041910,-500.0,0.00049315,120]
[355650949,1741437041919,-301.5011335,0.00049315,120]
[355650950,1741437041928,-515.69000512,0.00049315,120]
[355650951,1741437041938,-1274.84,0.00049315,120]
[355650952,1741437041947,-1274.84,0.00049315,120]
[355650953,1741437041956,-1274.84,0.00049315,120]
[355650954,1741437041966,-1274.84,0.00049315,120]
[355650955,1741437041975,-1274.84,0.00049315,120]
[355650956,1741437041984,-1274.84,0.00049315,120]
[355650957,1741437041993,-1274.84,0.00049315,120]
[355650958,1741437042003,-1274.84,0.00049315,120]
[355650959,1741437042012,-1274.84,0.00049315,120]
[355650960,1741437042022,-1274.84,0.00049315,120]
[355650961,1741437042031,-1274.84,0.00049315,120]
[355650962,1741437042040,-1274.84,0.00049315,120]
[355650963,1741437042050,-1274.84,0.00049315,120]
[355650964,1741437042059,-1274.84,0.00049315,120]
[355650965,1741437042068,-1274.84,0.00049315,120]
[355650966,1741437042078,-1274.84,0.00049315,120]
[355650967,1741437042094,-1274.84,0.00049315,120]
[355650968,1741437042111,-1274.84,0.00049315,120]
[355650969,1741437042121,-1274.84,0.00049315,120]
[355650970,1741437042130,-1274.84,0.00049315,120]
[355650971,1741437042140,-1274.84,0.00049315,120]
[355650972,1741437042149,-1274.84,0.00049315,120]
[355650973,1741437042168,-1274.84,0.00049315,120]
[355650974,1741437042257,-1275.04806614,0.00049315,120]
[355650975,1741437042267,-500.0,0.00049315,120]
[355650976,1741437042276,-1000.0,0.00049315,120]
[355650977,1741437042285,-509.69120795,0.00049315,120]
[355650978,1741437042294,-2961.36,0.00049315,120]
[355650979,1741437042304,-559.38050881,0.00049315,120]
[355650980,1741437042313,-587.87,0.00049315,120]
[355650981,1741437042322,-500.0,0.00049315,120]
[355650982,1741437042332,-500.0,0.00049315,120]
[355650983,1741437042341,-5575.6,0.00049315,120]
[355650984,1741437042351,-412.19156865,0.00049315,120]
[355650985,1741437042360,-521.51708385,0.00049315,120]
[355650986,1741437042370,-541.59856954,0.00049315,120]
[355650987,1741437042380,-500.0,0.00049315,120]
[355650988,1741437042389,-512.01335314,0.00049315,120]
[355650989,1741437042398,-14095.48,0.00049315,120]
[355650990,1741437042408,-519.9983833,0.00049315,120]
[355650991,1741437042417,-500.0,0.00049315,120]
[355650992,1741437042426,-392.57812239,0.00049315,120]
[355650993,1741437042436,-500.0,0.00049315,120]
[355650994,1741437042446,-275.15223931,0.00049315,120]
[355650995,1741437042455,-500.0,0.00049315,120]
[355650996,1741437042465,-630.27,0.00049315,120]
[355650997,1741437042474,-630.27,0.00049315,120]
[355650998,1741437042483,-630.27,0.00049315,120]
[355650999,1741437042493,-630.27,0.00049315,120]
[355651000,1741437042502,-630.27,0.00049315,120]
[355651001,1741437042511,-630.27,0.00049315,120]
[355651002,1741437042521,-630.27,0.00049315,120]
[355651003,1741437042530,-630.27,0.00049315,120]
[355651004,1741437042539,-630.27,0.00049315,120]
[355651005,1741437042549,-630.27,0.00049315,120]
[355651006,1741437042558,-630.27,0.00049315,120]
[355651007,1741437042567,-647.04,0.00049315,120]
[355651008,1741437042577,-630.27,0.00049315,120]
[355651009,1741437042586,-630.27,0.00049315,120]
[355651010,1741437042596,-630.27,0.00049315,120]
[355651011,1741437042607,-630.27,0.00049315,120]
[355651012,1741437042617,-630.27,0.00049315,120]
[355651013,1741437042627,-630.27,0.00049315,120]
[355651014,1741437042636,-630.27,0.00049315,120]
[355651015,1741437042645,-630.27,0.00049315,120]
[355651016,1741437042655,-630.27,0.00049315,120]
[355651017,1741437042665,-630.27,0.00049315,120]
[355651018,1741437042675,-630.27,0.00049315,120]
[355651019,1741437042684,-630.27,0.00049315,120]
[355651020,1741437042694,-630.42719784,0.00049315,120]
[355651021,1741437042703,-505.63254439,0.00049315,120]
[355651022,1741437042713,-7548.14,0.00049315,7]
[355651023,1741437042723,-1289.56,0.00049315,120]
[355651024,1741437042732,-300.89219109,0.00049315,120]
[355651025,1741437042742,-522.33387125,0.00049315,120]
[355651026,1741437042751,-504.18756698,0.00049315,120]
[355651027,1741437042760,-427.88302104,0.00049315,120]
[355651029,1741437042770,-513.85294894,0.00049315,120]
[355651030,1741437042779,-508.16543719,0.00049315,120]
[355651032,1741437042789,-500.0,0.00049315,120]
[355651033,1741437042800,-544.65757719,0.00049315,120]
[355651034,1741437042809,-500.0,0.00049315,30]
[355651035,1741437042824,-500.0,0.00049315,120]
[355651037,1741437042834,-503.67997924,0.00049315,120]
[355651039,1741437042844,-500.0,0.00049315,120]
[355651041,1741437042854,-500.0,0.00049315,120]
[355651043,1741437042864,-529.13705929,0.00049315,120]
[355651045,1741437042873,-500.0,0.00049315,120]
[355651047,1741437042883,-500.0,0.00049315,120]
[355651051,1741437042892,-540.80990144,0.00049315,120]
[355651054,1741437042902,-163.72414308,0.00049315,120]
[355651057,1741437042912,-500.0,0.00049315,120]
[355651060,1741437042921,-166.02734645,0.00049315,120]
[355651062,1741437042931,-1931.8,0.00049315,120]
[355651063,1741437042940,-511.56863627,0.00049315,120]
[355651064,1741437042950,-508.9447773,0.00049315,120]
[355651065,1741437042959,-1044.81,0.00049315,120]
[355651066,1741437042968,-360.51069541,0.00049315,120]
[355651067,1741437042978,-508.94887327,0.00049315,120]
[355651068,1741437042987,-500.0,0.00049315,120]
[355651069,1741437042996,-500.0,0.00049315,120]
[355651071,1741437043005,-789.14,0.00049315,120]
[355651072,1741437043014,-500.0,0.00049315,120]
[355651074,1741437043024,-500.0,0.00049315,120]
[355651075,1741437043033,-512.94923013,0.00049315,120]
[355651076,1741437043042,-500.0,0.00049315,120]
[355651077,1741437043052,-166.38058596,0.00049315,120]
[355651078,1741437043062,-176.88367046,0.00049315,120]
[355651079,1741437043073,-515.09519555,0.00049315,120]
[355651080,1741437043086,-500.0,0.00049315,120]
[355651081,1741437043095,-500.0,0.00049315,120]
[355651082,1741437043104,-526.91539129,0.00049315,120]
[355651083,1741437043113,-503.66127661,0.00049315,120]
[355651084,1741437043123,-800.13,0.00049315,120]
[355651085,1741437043132,-4197.06,0.00049315,2]
[355651086,1741437043142,-500.97679274,0.00049315,2]
[355651087,1741437043151,-9999.0,0.00049315,2]
[355651088,1741437043161,-626.56,0.00049315,120]
[355651089,1741437043171,-500.0,0.00049315,120]
[355651090,1741437043182,-500.0,0.00049315,2]
[355651091,1741437043191,-534.26905312,0.00049315,120]
[355651092,1741437043201,-500.0,0.00049315,120]
[355651093,1741437043210,-701.11,0.00049315,120]
[355651094,1741437043220,-500.0,0.00049315,120]
[355651095,1741437043230,-529.13909038,0.00049315,120]
[355651096,1741437043239,-508.30711993,0.00049315,120]
[355651097,1741437043248,-500.0,0.00049315,120]
[355651098,1741437043258,-554.46131479,0.00049315,120]
[355651099,1741437043268,-425.26701115,0.00049315,2]
[355651100,1741437043277,-500.0,0.00049315,120]
[355651101,1741437043286,-521.16974938,0.00049315,120]
[355651102,1741437043296,-833.33,0.00049315,2]
[355651103,1741437043305,-200.11684612,0.00049315,10]
[355651104,1741437043315,-1000.0,0.0004932,21]
[355651105,1741437043324,-800.0,0.00049326,30]
[355651106,1741437043333,-999.0,0.00049327,120]
[355651107,1741437043342,-1000.0,0.0004934,21]
[355651108,1741437043352,-1000.0,0.00049342,120]
[355651109,1741437043361,-423.3448319,0.00049348,30]
[355651110,1741437043371,-2501.6172422,0.0004935,2]
[355651111,1741437043380,-1000.0,0.0004936,21]
[355651112,1741437043390,-1000.0,0.00049369,120]
[355651113,1741437043399,-501.80293609,0.00049373,10]
[355651114,1741437043409,-500.0,0.00049373,10]
[355651115,1741437043418,-501.46404722,0.00049373,10]
[355651116,1741437043428,-502.63650637,0.00049373,10]
[355651117,1741437043438,-500.0,0.00049373,10]
[355651118,1741437043447,-500.0,0.00049373,10]
[355651119,1741437043456,-500.0,0.00049373,10]
[355651120,1741437043465,-607.92363618,0.00049373,10]
[355651121,1741437043474,-500.0,0.00049373,2]
[355651122,1741437043483,-500.0,0.00049373,10]
[355651123,1741437043492,-160.36975611,0.00049373,2]
[355651124,1741437043501,-500.0,0.00049373,10]
[355651125,1741437043510,-500.0,0.00049373,10]
[355651126,1741437043519,-500.0,0.00049373,10]
[355651127,1741437043529,-500.0,0.00049373,10]
[355651128,1741437043539,-500.0,0.00049373,10]
[355651129,1741437043547,-500.0,0.00049373,10]
[355651130,1741437043557,-500.0,0.00049373,10]
[355651131,1741437043566,-500.0,0.00049373,10]
[355651132,1741437043575,-500.0,0.00049373,10]
[355651133,1741437043585,-500.0,0.00049373,10]
[355651134,1741437043594,-500.0,0.00049373,10]
[355651135,1741437043603,-2693.77315038,0.0004938,120]
[355651136,1741437043612,-1000.0,0.0004938,21]
[355651137,1741437043621,-800.0,0.0004939,30]
[355651138,1741437043630,-1000.0,0.00049397,120]
[355651139,1741437043640,-13537.63836392,0.000494,120]
[355651140,1741437043649,-5000.0,0.000494,120]
[355651141,1741437043658,-1000.0,0.000494,21]
[355651142,1741437043668,-500.0,0.000494,115]
[355651143,1741437043678,-500.0,0.00049412,96]
[355651144,1741437043687,-800.0,0.00049414,30]
[355651145,1741437043696,-168.3888056,0.00049419,2]
[355651146,1741437043705,-622.2,0.00049419,2]
[355651147,1741437043715,-1000.0,0.0004942,21]
[355651148,1741437043724,-1000.0,0.00049424,120]
[355651149,1741437043734,-390.85946728,0.00049429,30]
[355651150,1741437043744,-1000.0,0.0004944,21]
[355651151,1741437043754,-800.0,0.0004944,30]
[355651152,1741437043763,-120278.13188532,0.0004945,120]
[355652182,1741437941202,-162.241082,0.0003589,2]
[355652183,1741437941223,-421.5972201,0.00043384,2]
[355652184,1741437941244,-1490.48343895,0.00043485,64]
[355652208,1741438008109,-206.90415627,0.00042,120]
[355652210,1741438027079,-1298.85699846,0.000419,9]
[355652211,1741438028078,-319.15163956,0.000419,9]
[355652212,1741438028101,-550.0,0.00041999,5]
[355652213,1741438028123,-1385.98668411,0.00042,120]
[355652214,1741438034084,-1142.3316614,0.00042,120]
[355652215,1741438043244,-419.50988903,0.00042,120]
[355652219,1741438054113,-1152.26760919,0.00042,120]
[355652220,1741438054137,-167.75256502,0.00043385,120]
[355652221,1741438054160,-162.40145185,0.00043485,64]
[355652222,1741438054183,-202.015497,0.00043757,2]
[355652223,1741438054205,-952.42160077,0.00044,120]
[355652310,1741438152077,-2003.56148251,0.00044,120]
[355652320,1741438157075,-1351.01691672,0.00044,120]
[355652321,1741438157097,-162.241082,0.00044315,2]
[355652322,1741438194915,154.58798746,0.000419,2]
[355652323,1741438228382,1564.07501683,0.000449,10]
[355652406,1741438238468,-1000.0,0.00045,120]
[355652408,1741438238478,-167.752565,0.00045014,120]
[355652410,1741438238487,-1039.459,0.00046,120]
[355652412,1741438238496,-1000.0,0.00046,120]
[355652414,1741438238506,-4307.0,0.00046,120]
[355652416,1741438238516,-150.0,0.00046575,10]
[355652418,1741438238525,-167.752565,0.00046643,120]
[355652420,1741438238537,-152.08,0.000468,42]
[355652422,1741438238547,-152.08,0.000468,42]
[355652424,1741438238562,-152.08,0.000468,42]
[355652426,1741438238578,-154.58798746,0.000469,2]
[355652428,1741438238587,-1511.44330645,0.00046923,28]
[355652430,1741438238597,-600.0,0.00046972,2]
[355652432,1741438238607,-1000.0,0.00047,120]
[355652434,1741438238616,-517242.70375,0.00047,2]
[355652436,1741438238626,-331.42361618,0.00047123,10]
[355652438,1741438238637,-160.0,0.00047205,2]
[355652440,1741438238648,-622.2,0.0004752,2]
[355652442,1741438238666,-1506.4702884,0.00047854,120]
[355652444,1741438238676,-601.61270334,0.00047863,120]
[355652446,1741438238685,-168.3888056,0.00047871,2]
[355652448,1741438238698,-501.61592095,0.00047873,10]
[355652450,1741438238707,-500.0,0.00047873,10]
[355652452,1741438238716,-500.0,0.00047873,10]
[355652454,1741438238726,-151.01694355,0.00047873,5]
[355652456,1741438238735,-500.0,0.00047873,10]
[355652458,1741438238744,-475.88153512,0.00047873,10]
[355652460,1741438238754,-500.0,0.00047873,2]
[355652462,1741438238763,-500.0,0.00047873,2]
[355652463,1741438238772,-500.0,0.00047873,10]
[355652466,1741438238782,-1000.0,0.00047889,120]
[355652468,1741438238791,-1654.24,0.00047889,120]
[355652470,1741438238801,-186.54478239,0.00047889,8]
[355652472,1741438238810,-80083.6981814,0.0004789,4]
[355652474,1741438238819,-222000.0,0.000479,2]
[355652475,1741438238829,-1000.0,0.00047917,120]
[355652477,1741438238838,-1000.0,0.00047944,120]
[355652479,1741438238848,-1000.0,0.00047972,120]
[355652481,1741438238857,-2111.39982572,0.0004799,120]
[355652483,1741438238866,-243.39,0.00047999,30]
[355652485,1741438238876,-1000.0,0.00047999,120]
[355652487,1741438238885,-1000.0,0.00048,120]
[355652490,1741438238897,-3489.44713978,0.00048,2]
[355652492,1741438238907,-4307.0,0.00048,120]
[355652494,1741438238916,-318.0,0.00048,120]
[355652496,1741438238926,-1000.0,0.00048026,120]
[355652498,1741438238936,-1000.0,0.00048054,120]
[355652500,1741438238945,-645.2214,0.00048068,2]
[355652502,1741438238955,-1000.0,0.00048081,120]
[355652503,1741438238964,-1000.0,0.00048109,120]
[355652505,1741438238973,-913.14453504,0.00048136,120]
[355652508,1741438238982,-500.0,0.0004815,120]
[355652510,1741438238992,-2500.0,0.000482,120]
[355652512,1741438239001,-500.0,0.00048206,99]
[355652513,1741438239011,-167.752565,0.00048271,120]
[355652516,1741438239020,-500.0,0.00048273,10]
[355652518,1741438239030,-500.0,0.00048273,10]
[355652519,1741438239039,-501.46404722,0.00048273,10]
[355652522,1741438239049,-500.0,0.00048273,10]
[355652523,1741438239058,-502.63650637,0.00048273,10]
[355652525,1741438239068,-500.0,0.00048273,10]
[355652527,1741438239078,-500.0,0.00048273,10]
[355652530,1741438239087,-500.0,0.00048273,10]
[355652532,1741438239097,-500.0,0.00048273,10]
[355652534,1741438239107,-500.0,0.00048273,10]
[355652536,1741438239116,-500.0,0.00048273,10]
[355652538,1741438239126,-500.0,0.00048273,10]
[355652539,1741438239136,-500.0,0.00048273,10]
[355652541,1741438239145,-500.0,0.00048273,10]
[355652543,1741438239155,-500.0,0.00048273,2]
[355652545,1741438239164,-500.0,0.00048273,10]
[355652547,1741438239174,-500.0,0.00048273,10]
[355652549,1741438239183,-500.0,0.00048273,10]
[355652551,1741438239194,-160.36975611,0.00048273,2]
[355652553,1741438239203,-500.0,0.00048273,10]
[355652555,1741438239213,-500.0,0.00048273,10]
[355652557,1741438239223,-607.92363618,0.00048273,10]
[355652559,1741438239233,-500.0,0.00048273,10]
[355652560,1741438239243,-40041.8490907,0.00048279,4]
[355652561,1741438239253,-1000.0,0.0004828,120]
[355652562,1741438239263,-15256.88087836,0.00048289,120]
[355652563,1741438239272,-15256.88087836,0.00048289,120]
[355652564,1741438239282,-15256.88087836,0.00048289,120]
[355652565,1741438239291,-15256.88087836,0.00048289,120]
[355652566,1741438239301,-15256.88087836,0.00048289,120]
[355652567,1741438239310,-500.0,0.00048306,100]
[355652568,1741438239319,-500.0,0.00048406,91]
[355652569,1741438239329,-590.1138567,0.0004843,4]
[355652570,1741438239338,-500.0,0.00048506,97]
[355652571,1741438239347,-500.0,0.00048606,98]
[355652572,1741438239367,-669.0945918,0.00048616,2]
[355652573,1741438239378,-500.0,0.00048706,96]
[355652574,1741438239387,-416.66666667,0.00048708,2]
[355652575,1741438239397,-1654.24,0.00048711,120]
[355652576,1741438239407,-3000.0,0.000488,2]
[355652577,1741438239417,-500.0,0.00048806,91]
[355652578,1741438239427,-443.473,0.00048817,2]
[355652579,1741438239438,-151.0,0.000489,120]
[355652580,1741438239448,-151.0,0.000489,120]
[355652583,1741438239459,-151.0,0.000489,120]
[355652585,1741438239470,-151.0,0.000489,120]
[355652587,1741438239479,-151.0,0.000489,120]
[355652589,1741438239488,-151.0,0.000489,120]
[355652591,1741438239499,-186.510752,0.000489,120]
[355652593,1741438239508,-500.0,0.00048906,93]
[355652595,1741438239517,-1000.0,0.00049,120]
[355652597,1741438239527,-155.103573,0.00049,120]
[355652599,1741438239537,-500.0,0.00049006,91]
[355652601,1741438239548,-500.0,0.00049106,90]
[355652603,1741438239558,-800.0,0.00049133,14]
[355652605,1741438239567,-693.8510917,0.00049164,2]
[355652607,1741438239577,-800.0,0.00049175,14]
[355652609,1741438239587,-800.0,0.0004918,14]
[355652611,1741438239596,-2500.0,0.000492,120]
[355652613,1741438239605,-1000.0,0.000492,120]
[355652615,1741438239615,-40041.8490907,0.00049205,4]
[355652617,1741438239626,-500.0,0.00049206,90]
[355652619,1741438239636,-55555.0,0.00049215,120]
[355652621,1741438239645,-800.0,0.00049224,14]
[355652623,1741438239655,-423.3448319,0.0004928,14]
[355652625,1741438239665,-1000.0,0.00049287,120]
[355652627,1741438239675,-1000.0,0.00049287,120]
[355652629,1741438239684,-1000.0,0.00049287,120]
[355652631,1741438239695,-1000.0,0.00049287,120]
[355652633,1741438239704,-1000.0,0.00049287,120]
[355652635,1741438239714,-538.58415534,0.00049287,120]
[355652637,1741438239724,-800.0,0.00049302,14]
[355652639,1741438239733,-75009.51475508,0.00049305,4]
[355653046,1741438243601,-400.99,0.0004699,10]
[355653048,1741438243611,-104.51638501,0.00046999,120]
[355653343,1741438246614,-395.48361499,0.00046999,120]
[355653344,1741438246624,-500.0,0.00046999,2]
[355653345,1741438246633,-500.0,0.00046999,2]
[355653346,1741438246643,-510.65296641,0.00046999,2]
[355653347,1741438246652,-500.0,0.00046999,2]
[355653348,1741438246662,-1511.44330642,0.00047642,28]
[355653349,1741438246671,-432.48,0.00049305,30]
[355653350,1741438246680,-186.80510486,0.00049305,4]
[355653602,1741439136129,-162.173155,0.0003589,2]
[355653603,1741439136151,-380.0,0.00042689,120]
[355653604,1741439136181,-1565.30290669,0.000429,9]
[355653605,1741439136206,-162.173155,0.00043667,2]
[355653606,1741439136228,-200.65156379,0.000449,2]
[355653607,1741439136251,-1196.50342968,0.00045,30]
[355653608,1741439137078,-3.49657032,0.00045,30]
[355653609,1741439137099,-150.0,0.00046575,10]
[355653610,1741439137121,-550.0,0.00046799,5]
[355653611,1741439137146,-152.44,0.000468,42]
[355653612,1741439137170,-152.44,0.000468,42]
[355653613,1741439137195,-152.44,0.000468,42]
[355653614,1741439137220,-152.44,0.000468,42]
[355653615,1741439137241,-261.76584463,0.00046981,2]
[355653626,1741439227114,-416.66666667,0.00046979,2]
[355653627,1741439227137,-150.0,0.00047115,2]
[355653628,1741439227160,-167.752565,0.00047689,120]
[355653629,1741439227181,-1458.118047,0.00047708,28]
[355653630,1741439227203,-180.07437562,0.00047808,120]
[355653631,1741439227225,-500.0,0.00047867,10]
[355653632,1741439227246,-500.0,0.00047867,2]
[355653633,1741439227267,-500.0,0.00047867,10]
[355653634,1741439227288,-501.67916063,0.00047867,10]
[355653635,1741439227311,-25.72187972,0.00047867,10]
[355653636,1741439229074,-474.27812028,0.00047867,10]
[355653637,1741439229094,-500.0,0.00047867,10]
[355653638,1741439229116,-435.54620578,0.00047867,10]
[355653639,1741439229137,-224.44874018,0.00047867,2]
[355653641,1741439252093,-180.52378682,0.00047,120]
[355653642,1741439252114,-275.55125982,0.00047867,2]
[355653643,1741439252135,-500.0,0.00047867,10]
[355653644,1741439252156,-500.0,0.00047867,10]
[355653645,1741439252177,-203.17594226,0.00047889,30]
[355653649,1741439352064,-156.0,0.000422,120]
[355653650,1741439352094,-1513.12614324,0.000429,9]
[355653651,1741439352115,-156.0,0.000444,120]
[355653652,1741439365432,2025.6306,0.00025,2]
[355653653,1741439365454,2115.57630369,0.00025,2]
[355653654,1741439365474,1263.85148843,0.00025,2]
[355653655,1741439365496,1969.08910659,0.00025,2]
[355653656,1741439365517,2090.91251665,0.00025,2]
[355653657,1741439365537,534.93998464,0.00025,2]
[355653658,1741439369771,173.029,0.0004391,120]
[355653659,1741439386713,2124.23763252,0.00025,2]
[355653660,1741439386734,1852.26997403,0.00025,2]
[355653661,1741439386757,1935.42359694,0.00025,2]
[355653662,1741439386778,971.06879651,0.00025,2]
[355653683,1741439432836,-200.6814095,0.00044973,10]
[355653684,1741439432846,-349.3185905,0.00044973,2]
[355653685,1741439432857,-150.6814095,0.00044973,2]
[355653686,1741439432868,-500.0,0.00044973,10]
[355653687,1741439432878,-458.81781912,0.00044973,3]
[355653688,1741439432887,-500.0,0.00044973,2]
[355653689,1741439432899,-500.0,0.00044973,10]
[355653690,1741439432909,-24933.72696908,0.00045,10]
[355653691,1741439432924,-106743.06630881,0.00045,10]
[355653692,1741439432934,-150.0,0.00045767,2]
[355653693,1741439432943,-1275.85329109,0.00046475,28]
[355653694,1741439432952,-250.0,0.00046575,10]
[355653695,1741439432962,-156.0,0.000466,120]
[355653696,1741439432971,-1275.85329109,0.00047414,28]
[355653697,1741439432980,-3670.88225179,0.000478,120]
[355653698,1741439432991,-175.75025747,0.000479,2]
[355653699,1741439433001,-2000.0,0.00047945,120]
[355653700,1741439433010,-2000.0,0.00047945,120]
[355653701,1741439433020,-2000.0,0.00047945,120]
[355653702,1741439433030,-2000.0,0.00047945,120]
[355653703,1741439433040,-2000.0,0.00047945,120]
[355653704,1741439433050,-2000.0,0.00047945,120]
[355653706,1741439433061,-2000.0,0.00047945,120]
[355653708,1741439433071,-2000.0,0.00047945,120]
[355653710,1741439433081,-2000.0,0.00047945,120]
[355653711,1741439433091,-1936.7676885,0.00047945,120]
[355653712,1741439433101,-8635.0,0.00048,60]
[355653713,1741439433111,-317.0,0.00048,120]
[355653714,1741439433120,-500.0,0.00048213,97]
[355653715,1741439433130,-500.0,0.00048313,98]
[355653716,1741439433140,-1275.85329109,0.00048354,28]
[355653717,1741439433150,-500.0,0.00048413,93]
[355653718,1741439433160,-442.5853926,0.0004843,4]
[355653719,1741439433169,-1731.57036615,0.000485,30]
[355653720,1741439433179,-500.0,0.00048513,97]